Cogmind - Beta 16 @@@ ROGUE MODE // 2025.12.04 @ 12:44:50 Player: C0-2MO Result: Escaped! Performance ------------- Evolutions (9) 4500 Regions Visited (15) 3000 Robots Destroyed (18) 90 Value Destroyed (444) 444 Prototype IDs (6) 120 Alien Tech Used (0) 0 Bonus (24553) 24553 TOTAL SCORE: 32707 Bonus ------- Entered DSFs 1000 Win 3000 Win Speed 20553 Cogmind --------- Core Integrity 1030/1600 Matter 30/300 Energy 158/310 System Corruption 0% Temperature Warm (126) Movement Flying (42) Location To Epsilon Eridani Parts ------- > --- POWER (3) -------- Fission Core > --- PROPULSION (14) -- Gyrokinetic Inverter Improved Gyrokinetic Inverter Impulse Thruster Array Impulse Thruster Array > --- UTILITY (6) ------ Experimental Optical Array Improved Signal Interpreter Hacking Suite Makeshift Hacking Suite > --- WEAPON (2) ------- Enhanced Nova Cannon > --- INVENTORY (5) ---- Improved Fusion Compressor Peak State ------------ > --- POWER ------------ Light Nuclear Core > --- PROPULSION ------- Gravmag Array Gyrokinetic Inverter Improved Gyrokinetic Inverter VTOL Module Field Propulsion Array Impulse Thruster Array Impulse Thruster Array > --- UTILITY ---------- Experimental Optical Array Improved Signal Interpreter Hacking Suite Makeshift Hacking Suite System Shield Improved System Shield > --- WEAPON ----------- (None) > --- INVENTORY -------- Fission Core Improved Fusion Compressor Enhanced Nova Cannon [Rating: 102] Favorites ----------- Power Light Nuclear Core Engine Light Ion Engine Power Core Light Nuclear Core Propulsion Flight Unit Treads Light Treads Hover Unit Gravmag Array Flight Unit Flight Unit Utility Improved Signal Interpreter Device Improved Sensor Array Processor Improved Signal Interpreter Hackware Makeshift Hacking Suite Protection Layered Light Armor Plating Weapon Autogun Energy Cannon Matter Neutralizer Ballistic Gun Autogun Launcher Improved Grenade Launcher Build | -11 -10 -9 -8 -7 -7 -6 -6 -5 -4 -4 -4 -3 -3 -2 -1 ------- Run | Yrd Mat Mat Mat Fac DSF Fac Ext Fac Fac Upp Upp Res DSF Res Acc Slots Evolved 18 | . . 2 2 2 . 2 . 2 2 . . 2 . 2 2 Power 2 | . . . . 1 . . . . . . . 1 . . . Propulsion 12 | . . 2 1 1 . 2 . 1 1 . . 1 . 1 2 Utility 4 | . . . 1 . . . . 1 1 . . . . 1 . Weapon . | . . . . . . . . . . . . . . . . Parts Attached 51 | 3 . 5 2 . 1 1 2 14 3 6 1 3 . 2 8 Power 4 | . . 1 . . . . . 1 1 . . . . . 1 Engine 2 | . . 1 . . . . . 1 . . . . . . . Core 2 | . . . . . . . . . 1 . . . . . 1 Reactor . | . . . . . . . . . . . . . . . . Propulsion 21 | 2 . 4 . . . 1 . 5 2 2 . 1 . . 4 Treads 2 | 2 . . . . . . . . . . . . . . . Leg . | . . . . . . . . . . . . . . . . Wheel . | . . . . . . . . . . . . . . . . Hover 6 | . . . . . . 1 . 3 . . . 1 . . 1 Flight 13 | . . 4 . . . . . 2 2 2 . . . . 3 Utility 19 | . . . 2 . 1 . 2 5 . 3 . 2 . 2 2 Device 7 | . . . 1 . . . 2 1 . 2 . . . 1 . Storage . | . . . . . . . . . . . . . . . . Processor 5 | . . . . . . . . 3 . . . 2 . . . Hackware 4 | . . . . . . . . . . 1 . . . 1 2 Protection 3 | . . . 1 . 1 . . 1 . . . . . . . Artifact . | . . . . . . . . . . . . . . . . Weapon 7 | 1 . . . . . . . 3 . 1 1 . . . 1 Energy Gun . | . . . . . . . . . . . . . . . . Energy Cannon 2 | . . . . . . . . . . 1 . . . . 1 Ballistic Gun 4 | 1 . . . . . . . 2 . . 1 . . . . Ballistic Cannon . | . . . . . . . . . . . . . . . . Launcher 1 | . . . . . . . . 1 . . . . . . . Special Weapon . | . . . . . . . . . . . . . . . . Impact Weapon . | . . . . . . . . . . . . . . . . Slashing Weapon . | . . . . . . . . . . . . . . . . Piercing Weapon . | . . . . . . . . . . . . . . . . Special Melee Weapon . | . . . . . . . . . . . . . . . . Unidentified Prototypes 2 | . . . . . . . . . . . . 1 . 1 . Parts Lost 26 | . . . . . . . 3 7 . 5 . . . 2 9 Power 3 | . . . . . . . 1 1 . . . . . . 1 Propulsion 15 | . . . . . . . 2 3 . 4 . . . 1 5 Utility 4 | . . . . . . . . 1 . . . . . 1 2 Weapon 4 | . . . . . . . . 2 . 1 . . . . 1 Highest Loss Streak 5 | . . . . . . . 3 5 . 5 . . . 2 5 To Critical Strikes . | . . . . . . . . . . . . . . . . Average Backups 2 | . 2 1 1 2 2 2 4 3 3 2 2 1 1 1 2 Power 1 | . . . . 1 1 1 2 1 1 1 1 1 1 1 1 Propulsion . | . 1 . . . . . . . . . . . . . . Utility . | . . . . . . . 1 . . . . . . . . Weapon 1 | . . . 1 1 1 1 1 1 2 1 1 . . . . Tool/Special . | . . . . . . . . . . . . . . . . Unused Backups 2 | . . . . . . . . 1 . . . . . . 1 Power 1 | . . . . . . . . . . . . . . . 1 Propulsion . | . . . . . . . . . . . . . . . . Utility . | . . . . . . . . . . . . . . . . Weapon 1 | . . . . . . . . 1 . . . . . . . Tool/Special . | . . . . . . . . . . . . . . . . Average Slot Usage (%) 54 | . 42 46 52 53 56 54 54 54 52 63 64 62 66 62 53 Engine 2 | . . 8 9 7 7 6 5 3 . . . . . . . Core 1 | . . . . . . . . . 5 5 5 4 4 4 3 Treads 2 | . 28 . . . . . . . . . . . . . . Hover 8 | . . . . . . 1 6 13 15 14 10 10 14 11 10 Flight 16 | . . 37 36 30 30 26 23 11 15 20 15 14 14 13 12 Device 5 | . . . 5 7 7 6 6 5 5 8 10 9 9 7 . Processor 5 | . . . . . . . . 5 10 10 10 9 9 8 8 Hackware 2 | . . . . . . . . . . . 5 4 4 7 14 Protection 3 | . . . 1 7 10 13 10 4 . . . . . . . Ballistic Gun 3 | . 14 . . . . . . 6 . . 1 4 4 4 2 Peak Build Rating 102 | 3 3 5 11 11 16 27 29 57 61 79 73 83 83 88 102 Average Rating 45 | 2 3 4 8 11 14 19 26 42 49 68 71 77 83 80 81 On Entrance 36 | . 3 . 5 11 11 16 27 28 46 61 71 73 83 83 71 Avg Prop Armor Cover (%) 13 | 34 34 . . . . 7 7 8 27 18 13 11 12 9 7 Naked Turns . | . . . . . . . . . . . . . . . . Heaviest Build 23 | 1 1 3 6 6 14 14 14 16 6 19 22 22 22 22 23 Greatest Support 61 | 3 3 16 16 16 16 16 16 61 23 27 23 23 23 23 51 Greatest Overweight (x) 1 | . . . . . . . 1 . . . . . . . . Average Overweight (x) . | . . . . . . . . . . . . . . . . Largest Inventory Capacity 5 | 5 5 5 5 5 5 5 5 5 5 5 5 5 5 5 5 Average Capacity 5 | 5 5 5 5 5 5 5 5 5 5 5 5 5 5 5 5 Most Carried 5 | . 5 4 2 2 2 4 5 5 4 3 2 1 1 1 5 Average Carried 2 | . 2 . 1 2 2 2 4 3 3 2 1 1 1 1 2 Final Capacity 5 | 5 5 5 5 5 5 5 5 5 5 5 5 5 5 5 5 Final Carried 5 | . 5 1 2 2 2 4 5 5 3 2 1 1 1 1 1 Class Distribution -------------------- 25% | Scavenger-Scout 22% | Scavenger-Sprinter 15% | Scavenger-Mutant 11% | Mutant 7% | Hacker-Sprinter 6% | Derelict-Scout 4% | Hacker-Scout 4% | Hacker-Mutant Dominant Class ---------------- Mutant | -10/Materials Scavenger-Sprinter | -9/Materials Scavenger-Sprinter | -8/Materials Scavenger-Sprinter | -7/Factory Scavenger-Sprinter | -7/DSF Scavenger-Sprinter | -6/Factory Scavenger-Sprinter | -6/Extension Scavenger-Mutant | -5/Factory Scavenger-Scout | -4/Factory Scavenger-Scout | -4/Upper Caves Derelict-Scout | -4/Upper Caves Derelict-Scout | -3/Research Scavenger-Scout | -3/DSF Hacker-Scout | -2/Research Hacker-Sprinter | -1/Access Resources | -11 -10 -9 -8 -7 -7 -6 -6 -5 -4 -4 -4 -3 -3 -2 -1 ----------- Run | Yrd Mat Mat Mat Fac DSF Fac Ext Fac Fac Upp Upp Res DSF Res Acc Matter Collected 637 | 162 48 . 93 . 9 . . 54 . 255 . . . . 16 Remotely 102 | . . . 93 . 9 . . . . . . . . . . Salvage Created 309 | . 115 . . . . . . 129 . 65 . . . . . Parts 29 | . 8 . . . . . . 10 . 11 . . . . . Haulers Intercepted . | . . . . . . . . . . . . . . . . Recyclers Shooed . | . . . . . . . . . . . . . . . . Parts Field Recycled . | . . . . . . . . . . . . . . . . Retrieved Matter . | . . . . . . . . . . . . . . . . Parts Self-Destructed 3 | . . . . . . . . . . 3 . . . . . Prevented . | . . . . . . . . . . . . . . . . Parts Restored . | . . . . . . . . . . . . . . . . Kills | -11 -10 -9 -8 -7 -7 -6 -6 -5 -4 -4 -4 -3 -3 -2 -1 ------- Run | Yrd Mat Mat Mat Fac DSF Fac Ext Fac Fac Upp Upp Res DSF Res Acc Combat Hostiles Destroyed 17 | . 3 . . . . . . 7 . 7 . . . . . Guns 7 | . 3 . . . . . . 4 . . . . . . . AOE 10 | . . . . . . . . 3 . 7 . . . . . Classes Destroyed 2 | . 2 . . . . . . . . . . . . . . Recycler 1 | . 1 . . . . . . . . . . . . . . Swarmer 17 | . 3 . . . . . . 7 . 7 . . . . . Best Kill Streak 5 | . 4 . . . . . . 4 . 5 . . . . . Combat Bots Only 5 | . 3 . . . . . . 4 . 5 . . . . . Max Kills in Single Turn 3 | . 1 . . . . . . 2 . 3 . . . . . Gunslinging . | . . . . . . . . . . . . . . . . Exploded 3 | . . . . . . . . 2 . 3 . . . . . Melee . | . . . . . . . . . . . . . . . . Uniques/NPCs Destroyed . | . . . . . . . . . . . . . . . . Combat | -11 -10 -9 -8 -7 -7 -6 -6 -5 -4 -4 -4 -3 -3 -2 -1 -------- Run | Yrd Mat Mat Mat Fac DSF Fac Ext Fac Fac Upp Upp Res DSF Res Acc Hostile Shots Fired 351 | . 25 . 2 . 4 2 77 55 . 38 5 . 1 30 112 Missed 170 | . 7 . 2 . 2 . 45 18 . 17 2 . 1 16 60 Hits 181 | . 18 . . . 2 2 32 37 . 21 3 . . 14 52 Projectile 181 | . 18 . . . 2 2 32 37 . 21 3 . . 14 52 Critical Strikes 6 | . . . . . . . . . . . 1 . . 1 4 Part Disruptions 1 | . . . . . . . . . . . . . . . 1 Damage Taken 3622 | . 141 . . . 94 39 484 754 . 372 49 . . 321 1368 Core 959 | . 44 . . . 47 . 115 109 . 33 18 . . 23 570 Absorbed by Shields . | . . . . . . . . . . . . . . . . Redirected to Shielding 81 | . . . . . 31 . 50 . . . . . . . . Regen/Repaired (Parts) 65 | . . . . . . . . . . . . . . 65 . Core Remaining (%) 91 | 100 82 100 100 . 93 . 86 89 . . 95 . 100 98 64 Volleys Fired 62 | . 13 . . . . . . 37 . 7 . . . . 5 Largest 2 | . 1 . . . . . . 2 . 1 . . . . 1 Hottest 120 | . 20 . . . . . . 46 . 36 . . . . 120 Shots Fired 68 | . 13 . . . . . . 43 . 7 . . . . 5 Gun 53 | . 13 . . . . . . 40 . . . . . . . Cannon 5 | . . . . . . . . . . . . . . . 5 Launcher 10 | . . . . . . . . 3 . 7 . . . . . Special . | . . . . . . . . . . . . . . . . Kinetic 53 | . 13 . . . . . . 40 . . . . . . . Thermal 5 | . . . . . . . . . . . . . . . 5 Explosive 10 | . . . . . . . . 3 . 7 . . . . . Electromagnetic . | . . . . . . . . . . . . . . . . Robot Hit Streak 6 | . 3 . . . . . . 6 . 1 . . . . . Robot Miss Streak 4 | . 1 . . . . . . 4 . 2 . . . . . Penetration Max . | . . . . . . . . . . . . . . . . Secondary Targets . | . . . . . . . . . . . . . . . . Shots Hit Robots 29 | . 9 . . . . . . 17 . 3 . . . . . Core Hits 31 | . 6 . . . . . . 11 . 14 . . . . . Critical Kills . | . . . . . . . . . . . . . . . . Critical Parts Destroyed . | . . . . . . . . . . . . . . . . Critical Strikes . | . . . . . . . . . . . . . . . . Melee Attacks . | . . . . . . . . . . . . . . . . Impact . | . . . . . . . . . . . . . . . . Slashing . | . . . . . . . . . . . . . . . . Piercing . | . . . . . . . . . . . . . . . . Sneak Attacks . | . . . . . . . . . . . . . . . . Combat Hostiles . | . . . . . . . . . . . . . . . . Follow-up Attacks . | . . . . . . . . . . . . . . . . Damage Inflicted 1520 | . 82 . . . . . . 626 . 812 . . . . . Guns 295 | . 82 . . . . . . 213 . . . . . . . Cannons . | . . . . . . . . . . . . . . . . Explosions 1162 | . . . . . . . . 350 . 812 . . . . . Melee . | . . . . . . . . . . . . . . . . Ramming 63 | . . . . . . . . 63 . . . . . . . Kinetic 295 | . 82 . . . . . . 213 . . . . . . . Thermal . | . . . . . . . . . . . . . . . . Explosive 1162 | . . . . . . . . 350 . 812 . . . . . Electromagnetic . | . . . . . . . . . . . . . . . . Impact . | . . . . . . . . . . . . . . . . Slashing . | . . . . . . . . . . . . . . . . Piercing . | . . . . . . . . . . . . . . . . Highest Corruption 1 | . . . . . . . . . . . . . . 1 . Average Corruption 1 | . . . . . . . . . . . . . . 1 . Corruption Purged . | . . . . . . . . . . . . . . . . Corruption Blocked . | . . . . . . . . . . . . . . . . Overload Shots . | . . . . . . . . . . . . . . . . Overflow Damage 53 | . . . . . . . . 23 . 30 . . . . . Projectiles . | . . . . . . . . . . . . . . . . Explosions 53 | . . . . . . . . 23 . 30 . . . . . Melee . | . . . . . . . . . . . . . . . . Knockbacks 1 | . . . . . . . . 1 . . . . . . . Impact 1 | . . . . . . . . 1 . . . . . . . Kinetic . | . . . . . . . . . . . . . . . . Secondary . | . . . . . . . . . . . . . . . . Self-Inflicted Damage 150 | . . . . . . . . 150 . . . . . . . Shots 2 | . . . . . . . . 2 . . . . . . . Rammed 2 | . . . . . . . . 2 . . . . . . . Targets Rammed 2 | . . . . . . . . 2 . . . . . . . Kicked . | . . . . . . . . . . . . . . . . Crushed . | . . . . . . . . . . . . . . . . Highest Temperature 192 | . . 1 . . . . 7 5 . 8 . . . . 192 Average Temperature 72 | . . 1 . . . . 4 4 . 6 . . . . 125 Received Heat Transfer 252 | . . . . . . 18 159 . . 30 . . . 36 9 Siege Activations . | . . . . . . . . . . . . . . . . Martial Activations . | . . . . . . . . . . . . . . . . Shielding Activations . | . . . . . . . . . . . . . . . . Robots Disrupted . | . . . . . . . . . . . . . . . . Combat Hostiles . | . . . . . . . . . . . . . . . . Robots Corrupted . | . . . . . . . . . . . . . . . . Combat Hostiles . | . . . . . . . . . . . . . . . . Parts Fried . | . . . . . . . . . . . . . . . . Impact Corruptions . | . . . . . . . . . . . . . . . . Robots Melted . | . . . . . . . . . . . . . . . . Combat Hostiles . | . . . . . . . . . . . . . . . . Parts Melted . | . . . . . . . . . . . . . . . . Heat Transferred . | . . . . . . . . . . . . . . . . Parts Sabotaged . | . . . . . . . . . . . . . . . . Parts Stolen . | . . . . . . . . . . . . . . . . Parts Stripped . | . . . . . . . . . . . . . . . . Power Chain Reactions . | . . . . . . . . . . . . . . . . Alert | -11 -10 -9 -8 -7 -7 -6 -6 -5 -4 -4 -4 -3 -3 -2 -1 ------- Run | Yrd Mat Mat Mat Fac DSF Fac Ext Fac Fac Upp Upp Res DSF Res Acc Maximum Alert Level . | . . . . . . . . . . . . . . . . Low Security (%) 100 | 100 100 100 100 100 100 100 100 100 100 . . 100 100 100 100 Level 1 . | . . . . . . . . . . . . . . . . Level 2 . | . . . . . . . . . . . . . . . . Level 3 . | . . . . . . . . . . . . . . . . Level 4 . | . . . . . . . . . . . . . . . . Level 5 . | . . . . . . . . . . . . . . . . High Security . | . . . . . . . . . . . . . . . . Max Security . | . . . . . . . . . . . . . . . . Peak Influence 147 | . 70 18 9 . 18 15 2 147 56 . . 94 63 43 35 Initial 94 | . . 18 9 . 3 9 2 . 56 . . 94 63 35 22 Average 39 | . 45 13 3 . 5 5 . 79 45 . . 89 63 28 12 Influence Increases 891 | . 85 15 . 5 15 20 . 312 15 250 . . . 63 111 Destroy 0b10 Robot/C 340 | . 60 . . . . . . 140 . 140 . . . . . Destroy 0b10 Robot/NC 5 | . 5 . . . . . . . . . . . . . . Destroy Leader 50 | . 10 . . . . . . 20 . 20 . . . . . Successful Hack 44 | . 10 . . 5 . 5 . . . . . . . 3 21 Disable Machine 45 | . . . . . . . . 15 . . . . . . 30 Destroy Structure 32 | . . . . . . . . 32 . . . . . . . Partial Spotted 75 | . . 15 . . . . . 15 15 . . . . 15 15 Lose Combat Pursuer 300 | . . . . . 15 15 . 90 . 90 . . . 45 45 Influence Decreases 876 | . 40 37 23 . 2 33 5 195 91 116 34 57 21 88 134 Entered New Map 278 | . . 27 14 . 2 9 3 . 61 16 34 47 21 28 16 Time Decay 405 | . 40 10 9 . . 24 2 140 30 50 . 10 . 30 60 Lost Part 183 | . . . . . . . . 55 . 50 . . . 20 58 Lost Ally 10 | . . . . . . . . . . . . . . 10 . Squads Dispatched 7 | . . . . . . . 2 1 . . . . . 2 2 Investigation 3 | . . . . . . . 1 . . . . . . 2 . Extermination 1 | . . . . . . . . . . . . . . . 1 Reinforcement 3 | . . . . . . . 1 1 . . . . . . 1 Assault . | . . . . . . . . . . . . . . . . Garrison . | . . . . . . . . . . . . . . . . Intercept . | . . . . . . . . . . . . . . . . Searches Triggered . | . . . . . . . . . . . . . . . . Construction Impeded 1 | . . . . . . . . 1 . . . . . . . Haulers Reinforced . | . . . . . . . . . . . . . . . . Active Scanning Responses . | . . . . . . . . . . . . . . . . Cargo Convoy Interrupts . | . . . . . . . . . . . . . . . . Stealth | -11 -10 -9 -8 -7 -7 -6 -6 -5 -4 -4 -4 -3 -3 -2 -1 --------- Run | Yrd Mat Mat Mat Fac DSF Fac Ext Fac Fac Upp Upp Res DSF Res Acc Distress Signals 2 | . . 1 . . . . . . . . . . . 1 . Communications Jammed . | . . . . . . . . . . . . . . . . Distress Signals . | . . . . . . . . . . . . . . . . Times Spotted 94 | . 7 2 1 . 1 1 11 13 1 21 5 . 1 14 16 Peak Tracking Total 12 | . 4 3 1 . 1 1 10 4 1 11 5 . 2 12 12 Tactical Retreats 10 | . . . . . 1 1 . 3 . 2 . . . 2 1 Traps | -11 -10 -9 -8 -7 -7 -6 -6 -5 -4 -4 -4 -3 -3 -2 -1 ------- Run | Yrd Mat Mat Mat Fac DSF Fac Ext Fac Fac Upp Upp Res DSF Res Acc Traps Triggered 3 | . . . . . 1 . . 1 . . . . 1 . . Indirectly . | . . . . . . . . . . . . . . . . Trap Hack Attempts . | . . . . . . . . . . . . . . . . Triggered . | . . . . . . . . . . . . . . . . Disarmed . | . . . . . . . . . . . . . . . . Reprogrammed . | . . . . . . . . . . . . . . . . Reused . | . . . . . . . . . . . . . . . . Traps Extracted . | . . . . . . . . . . . . . . . . Installed . | . . . . . . . . . . . . . . . . Triggered . | . . . . . . . . . . . . . . . . Machines | -11 -10 -9 -8 -7 -7 -6 -6 -5 -4 -4 -4 -3 -3 -2 -1 ---------- Run | Yrd Mat Mat Mat Fac DSF Fac Ext Fac Fac Upp Upp Res DSF Res Acc Machines Disabled 3 | . . . . . . . . 1 . . . . . . 2 Max in Single Turn 1 | . . . . . . . . 1 . . . . . . 1 Machines Repaired . | . . . . . . . . . . . . . . . . Machines Dismantled . | . . . . . . . . . . . . . . . . Machines Sabotaged . | . . . . . . . . . . . . . . . . Overloaded Fab Kills . | . . . . . . . . . . . . . . . . Hacking | -11 -10 -9 -8 -7 -7 -6 -6 -5 -4 -4 -4 -3 -3 -2 -1 --------- Run | Yrd Mat Mat Mat Fac DSF Fac Ext Fac Fac Upp Upp Res DSF Res Acc Machines Accessed 12 | . 2 . . 1 . 2 1 1 . . . 1 . 3 1 Terminals 10 | . 2 . . 1 . 2 1 1 . . . 1 . 1 1 Fabricators . | . . . . . . . . . . . . . . . . Repair Stations 2 | . . . . . . . . . . . . . . 2 . Recycling Units . | . . . . . . . . . . . . . . . . Scanalyzers . | . . . . . . . . . . . . . . . . Garrison Access . | . . . . . . . . . . . . . . . . Total Hacks 26 | . 8 . . 2 . 2 2 2 . . . 1 . 8 1 Successful 12 | . 5 . . 1 . 2 . . . . . 1 . 2 1 Failed 14 | . 3 . . 1 . . 2 2 . . . . . 6 . Catastrophic 3 | . . . . . . . 1 . . . . . . 2 . Database Lockouts . | . . . . . . . . . . . . . . . . Manual 7 | . 4 . . . . . . 2 . . . . . 1 . Terminals 20 | . 8 . . 2 . 2 2 2 . . . 1 . 2 1 Fabricators . | . . . . . . . . . . . . . . . . Repair Stations 6 | . . . . . . . . . . . . . . 6 . Recycling Units . | . . . . . . . . . . . . . . . . Scanalyzers . | . . . . . . . . . . . . . . . . Garrison Access . | . . . . . . . . . . . . . . . . Terminal Hacks 9 | . 3 . . 1 . 2 . . . . . 1 . 1 1 Prototype ID Bank 2 | . 2 . . . . . . . . . . . . . . Open Door 1 | . . . . . . 1 . . . . . . . . . Open DSF 4 | . . . . 1 . 1 . . . . . 1 . 1 . Level Access Points 1 | . . . . . . . . . . . . . . . 1 Zone Layout 1 | . 1 . . . . . . . . . . . . . . Fabricator Hacks . | . . . . . . . . . . . . . . . . Repair Station Hacks . | . . . . . . . . . . . . . . . . Recycling Unit Hacks . | . . . . . . . . . . . . . . . . Scanalyzer . | . . . . . . . . . . . . . . . . Garrison Access Hacks . | . . . . . . . . . . . . . . . . Unauthorized Hacks 3 | . 2 . . . . . . . . . . . . 1 . Terminals 2 | . 2 . . . . . . . . . . . . . . Botnet 2 | . 2 . . . . . . . . . . . . . . Fabricators . | . . . . . . . . . . . . . . . . Repair Stations 1 | . . . . . . . . . . . . . . 1 . Patch 1 | . . . . . . . . . . . . . . 1 . Recycling Units . | . . . . . . . . . . . . . . . . Scanalyzers . | . . . . . . . . . . . . . . . . Garrison Access . | . . . . . . . . . . . . . . . . Data Cores Recovered . | . . . . . . . . . . . . . . . . Used . | . . . . . . . . . . . . . . . . Hacking Detections 8 | . 1 . . 1 . 1 1 1 . . . . . 3 . Full Trace Events 2 | . . . . . . . 1 . . . . . . 1 . Feedback Events . | . . . . . . . . . . . . . . . . Feedback Blocked . | . . . . . . . . . . . . . . . . Robot Schematics Acquired . | . . . . . . . . . . . . . . . . Robots Built . | . . . . . . . . . . . . . . . . Authchips . | . . . . . . . . . . . . . . . . Time . | . . . . . . . . . . . . . . . . Total Robot Build Rating . | . . . . . . . . . . . . . . . . Part Schematics Acquired . | . . . . . . . . . . . . . . . . Parts Built . | . . . . . . . . . . . . . . . . Authchips . | . . . . . . . . . . . . . . . . Time . | . . . . . . . . . . . . . . . . Total Part Build Rating . | . . . . . . . . . . . . . . . . Part Studies Acquired . | . . . . . . . . . . . . . . . . Parts Repaired . | . . . . . . . . . . . . . . . . Time . | . . . . . . . . . . . . . . . . Parts Recycled . | . . . . . . . . . . . . . . . . Recycled Matter . | . . . . . . . . . . . . . . . . Retrieved Matter . | . . . . . . . . . . . . . . . . Retrieved Components . | . . . . . . . . . . . . . . . . Parts Scanalyzed . | . . . . . . . . . . . . . . . . Part Schematics Acquired . | . . . . . . . . . . . . . . . . Parts Damaged . | . . . . . . . . . . . . . . . . Bothacking | -11 -10 -9 -8 -7 -7 -6 -6 -5 -4 -4 -4 -3 -3 -2 -1 ------------ Run | Yrd Mat Mat Mat Fac DSF Fac Ext Fac Fac Upp Upp Res DSF Res Acc Used RIF Installer . | . . . . . . . . . . . . . . . . Robots Hacked . | . . . . . . . . . . . . . . . . Non-combat . | . . . . . . . . . . . . . . . . Combat . | . . . . . . . . . . . . . . . . Robot Hacks Applied . | . . . . . . . . . . . . . . . . Relay Couplers Released . | . . . . . . . . . . . . . . . . Fabnet Peak Effective % . | . . . . . . . . . . . . . . . . Robots Rewired . | . . . . . . . . . . . . . . . . Allies Hacked . | . . . . . . . . . . . . . . . . Hacks Repelled . | . . . . . . . . . . . . . . . . Allies | -11 -10 -9 -8 -7 -7 -6 -6 -5 -4 -4 -4 -3 -3 -2 -1 -------- Run | Yrd Mat Mat Mat Fac DSF Fac Ext Fac Fac Upp Upp Res DSF Res Acc Total Allies . | . . . . . . . . . . . . . . . . Largest Group . | . . . . . . . . . . . . . . . . Highest-Rated Group . | . . . . . . . . . . . . . . . . Highest-Rated Ally . | . . . . . . . . . . . . . . . . Total Orders 4 | . . . . . . . . . . 2 . 1 1 . . RETURN 4 | . . . . . . . . . . 2 . 1 1 . . Ally Attacks . | . . . . . . . . . . . . . . . . Total Damage . | . . . . . . . . . . . . . . . . Kills . | . . . . . . . . . . . . . . . . Allies Corrupted . | . . . . . . . . . . . . . . . . Allies Melted . | . . . . . . . . . . . . . . . . Intel | -11 -10 -9 -8 -7 -7 -6 -6 -5 -4 -4 -4 -3 -3 -2 -1 ------- Run | Yrd Mat Mat Mat Fac DSF Fac Ext Fac Fac Upp Upp Res DSF Res Acc Active Infowar (turns) 849 | . . . . . . . 63 307 70 119 16 33 10 73 158 Optics 632 | . . . . . . . . 153 70 119 16 33 10 73 158 Sensors 430 | . . . . . . . . 125 70 119 16 33 10 57 . IFF 102 | . . . . . . . 63 39 . . . . . . . Machine Analysis 77 | . . . . . . . . 77 . . . . . . . Triangulation 182 | . . . . . . . 2 180 . . . . . . . Robot Analysis Total . | . . . . . . . . . . . . . . . . Derelict Logs Recovered 3 | . . . . . . . . . . 3 . . . . . Drone Launches 15 | . . . . . . . . . . 6 . 3 . 6 . Drone Recoveries 12 | . . . . . . . . . . 6 . . 3 3 . Exploration | -11 -10 -9 -8 -7 -7 -6 -6 -5 -4 -4 -4 -3 -3 -2 -1 ------------- Run | Yrd Mat Mat Mat Fac DSF Fac Ext Fac Fac Upp Upp Res DSF Res Acc Turns Passed 1173 | 17 87 38 45 9 41 79 71 307 70 119 16 33 10 73 158 Spaces Moved 2619 | 25 117 102 124 29 78 203 202 414 206 313 49 75 32 225 425 Core 142 | 25 117 . . . . . . . . . . . . . . Treads . | . . . . . . . . . . . . . . . . Legs . | . . . . . . . . . . . . . . . . Wheels . | . . . . . . . . . . . . . . . . Hover 307 | . . . . . . . . 307 . . . . . . . Flight 2170 | . . 102 124 29 78 203 202 107 206 313 49 75 32 225 425 Fastest Speed 27 | 50 50 31 31 31 31 31 31 37 30 27 30 30 30 30 29 Average Speed 34 | 50 50 31 31 31 31 31 32 49 31 29 30 30 30 30 31 Slowest Speed 117 | 50 50 31 31 31 31 31 117 60 32 34 30 30 30 30 42 Overloaded Moves . | . . . . . . . . . . . . . . . . Propulsion Burnouts . | . . . . . . . . . . . . . . . . Robots Hopped 61 | . . 7 1 . 2 3 21 . 2 2 . 1 . 8 14 Potential Cave-ins . | . . . . . . . . . . . . . . . . Cave-ins Triggered . | . . . . . . . . . . . . . . . . Exploration Rate (%) 24 | 3 33 20 17 1 86 6 40 15 9 52 12 3 51 17 19 Regions Visited 15 Branch Regions 3 Pre-discovered Areas 2 | . . . . . . . . . . 2 . . . . . Known Exits Taken 6 | . . . . 1 . . . 1 1 1 1 1 . . . Unknown Exits Taken 7 | 1 1 1 1 . . 1 1 . . . . . . 1 . Scrap Searched 5 | . . . . . . . . . . 5 . . . . . Spaces Dug . | . . . . . . . . . . . . . . . . Terrain Destroyed 73 | . . . . . . . . 16 . 57 . . . . . Melee . | . . . . . . . . . . . . . . . . Projectile . | . . . . . . . . . . . . . . . . AOE 73 | . . . . . . . . 16 . 57 . . . . . Terrain Rammed 1 | . . . . . . . . 1 . . . . . . . Walls Destroyed . | . . . . . . . . . . . . . . . . Machines Disabled 1 | . . . . . . . . 1 . . . . . . . Actions | -11 -10 -9 -8 -7 -7 -6 -6 -5 -4 -4 -4 -3 -3 -2 -1 --------- Run | Yrd Mat Mat Mat Fac DSF Fac Ext Fac Fac Upp Upp Res DSF Res Acc Total 2728 | 27 134 100 127 28 91 214 185 477 207 328 49 82 31 220 428 Wait 23 | . . . 2 . . 12 . 2 . 3 . 3 . 1 . Move 2495 | 24 116 87 121 28 73 196 168 413 201 308 48 72 31 210 399 Hop 47 | . . 7 1 . 2 3 12 . 2 2 . 1 . 6 11 Pick Up 16 | . 5 1 1 . . 2 1 3 . . . . . . 3 Fast Attach 36 | 3 . . 2 . 1 1 2 11 1 6 . 3 . 1 5 Attach 15 | . . 5 . . . . . 3 2 1 1 . . . 3 Detach 1 | . . . . . . . . 1 . . . . . . . Swap 3 | . . . . . . . . . . . . 1 . 2 . Drop 12 | . . . . . . . 2 4 1 1 . 2 . . 2 Fire 62 | . 13 . . . . . . 37 . 7 . . . . 5 Melee . | . . . . . . . . . . . . . . . . Ram 3 | . . . . . . . . 3 . . . . . . . Kick . | . . . . . . . . . . . . . . . . Crush . | . . . . . . . . . . . . . . . . Escape Stasis 15 | . . . . . 15 . . . . . . . . . . Rewire . | . . . . . . . . . . . . . . . . Trap . | . . . . . . . . . . . . . . . . Miscellaneous . | . . . . . . . . . . . . . . . . Route ------- -11/Scrapyard -10/Materials (discovered 2 exits: [*Mat] / [*Min]) -9/Materials -8/Materials -7/Factory -7/DSF -6/Factory -6/Extension (discovered 2 exits: *Fac / [*Cet]) -5/Factory -4/Factory -4/Upper Caves -4/Upper Caves -3/Research -3/DSF -2/Research -1/Access To Epsilon Eridani History --------- Turn | Location | Event 6 | -11/Scrapyard | Discovered new exit (range 16) 18 | -11/Scrapyard | Entered Materials 87 | -10/Materials | Discovered new exit (range 6) 102 | -10/Materials | Discovered new exit (range 6) 105 | -10/Materials | Released all parts (3) 105 | -10/Materials | Entered another Materials area 105 | -9/Materials | Evolved 2 slots: Propulsion x2 141 | -9/Materials | Discovered new exit (range 8) 143 | -9/Materials | Entered another Materials area 143 | -8/Materials | Evolved 2 slots: Propulsion x1, Utility x1 183 | -8/Materials | Discovered new exit (range 8) 188 | -8/Materials | Entered Factory 188 | -7/Factory | Evolved 2 slots: Power x1, Propulsion x1 197 | -7/Factory | Identified exit to DSF 197 | -7/Factory | Entered DSF 217 | -7/DSF | Additional patrols routed to DSF 219 | -7/DSF | Discovered new exit (range 15) 238 | -7/DSF | Entered Factory 238 | -6/Factory | Evolved 2 slots: Propulsion x2 315 | -6/Factory | Discovered new exit (range 6) 317 | -6/Factory | Entered Extension 345 | -6/Extension | Spotted B-75 Beast 346 | -6/Extension | Spotted B-75 Beast 381 | -6/Extension | Discovered new exit (range 15) 381 | -6/Extension | Discovered new exit (range 15) 388 | -6/Extension | Entered Factory 388 | -5/Factory | Evolved 2 slots: Propulsion x1, Utility x1 417 | -5/Factory | Lost 3 parts (1p2n) 613 | -5/Factory | Discovered new exit (range 6) 615 | -5/Factory | Identified exit to Factory 695 | -5/Factory | Entered another Factory area 695 | -4/Factory | Evolved 2 slots: Propulsion x1, Utility x1 704 | -4/Factory | Lost 5 parts (1p2n2w) 739 | -4/Factory | Discovered new exit (range 5) 740 | -4/Factory | Identified exit to Upper Caves 765 | -4/Factory | Entered Upper Caves 793 | -4/Upper Caves | Learned Research stockpile data 794 | -4/Upper Caves | Learned location of Quarantine (-2) 876 | -4/Upper Caves | Learned location of Armory (-3) 879 | -4/Upper Caves | Attracted the attention of an 0b10 outpost 881 | -4/Upper Caves | Discovered new exit (range 11) 884 | -4/Upper Caves | Identified exit to Upper Caves 884 | -4/Upper Caves | Entered another Upper Caves area 894 | -4/Upper Caves | Discovered new exit (range 17) 900 | -4/Upper Caves | Identified exit to Research 900 | -4/Upper Caves | Entered Research 900 | -3/Research | Evolved 2 slots: Power x1, Propulsion x1 909 | -3/Research | Lost 5 parts (4n1w) 932 | -3/Research | Identified exit to DSF 933 | -3/Research | Entered DSF 933 | -3/DSF | Accompanied by 3 allies 937 | -3/DSF | Discovered new exit (range 19) 943 | -3/DSF | Identified exit to Research 943 | -3/DSF | Entered Research 943 | -2/Research | Evolved 2 slots: Propulsion x1, Utility x1 975 | -2/Research | Spotted B-90 Cyclops 1010 | -2/Research | Discovered new exit (range 12) 1010 | -2/Research | Spotted B-90 Cyclops 1016 | -2/Research | Entered Access 1016 | -1/Access | Evolved 2 slots: Propulsion x2 1068 | -1/Access | Identified exit to Surface 1097 | -1/Access | Spotted B-99 Colossus 1153 | -1/Access | Spotted B-99 Colossus 1153 | -1/Access | Spotted B-99 Colossus 1157 | -1/Access | Lost 5 parts (1p3n1w) 1174 | *** | Escaped! Last Messages --------------- 01157_ Penetrated by Slug. 01157_ Imp. System Shield destroyed. 01157_ Slug penetrates Wall. 01160_ Slug penetrates Sealed Heavy Doors. 01160_ Penetrated by Slug. 01160_ Slug penetrates Sealed Heavy Doors. 01161_ Sealed Heavy Doors breached. 01161_ Knocked back. 01161_ Slug penetrates Sealed Heavy Doors. 01161_ Slug penetrates B-99 Colossus. 01164_ VTOL Module destroyed. 01164_ Knocked back. 01164_ Slug penetrates Sealed Heavy Doors. 01164_ Penetrated by Slug. 01164_ Slug penetrates Sealed Heavy Doors. 01167_ Knocked back. 01167_ Penetrated by Slug. 01167_ System Shield destroyed. 01167_ Penetrated by Slug. 01170_ Main Access Shell breached. Map ----- +----------------------------------------------------+ | ??????????????????????# ########??????????????? | | ?????????????????????## #?#################???? | | ?????+#############+##" #? #???? | | ???? # #???? | | ???? # #???? | | ???? + #???? | | ???? # #???? | | ???? # #???? | | ???? # #???? | | ???? ###### "##################???? | | ????? ###########??# %#??????????????????? | | ???????????????????# #??????????????????? | | ???????????????????# #??????????????????? | | ???????????????????# #??????????????????? | | ???????????????????# %#??????????????????? | | ???????????????????# #??????????????????? | | ???????????????????# % #??????????????????? | | ???????????????????#"""""""" "#??????????????????? | | ???????????????????????????"%"???????????????????? | | ???????????????????????????" "???????????????????? | | ???????????????????#"""""""" "#??????????????????? | | ???????????????????# p #??????????????????? | | ???????????????????# """" " #??????????????????? | | ??????????????????????" " #??????????????????? | | ??????????????????????" "" " #??????????????????? | | ??????????????????????" "@ " #??????????????????? | | ??????????????????????" " #??????????????????? | | ??????????????????????"""""" #??????????????????? | | ??????????????????????????? #??????????????????? | | ??????????????????????????? #??????????????????? | | ???????????????????????????""""??????????????????? | | ?????????????????????????????????????????????????? | | ?????????????????????????????????????????????????? | | ?????????????????????????????????????????????????? | | ?????????????????????????????????????????????????? | | ?????????????????????????????????????????????????? | | ?????????????????????????????????????????????????? | | ?????????????????????????????????????????????????? | | ?????????????????????????????????????????????????? | | ????????????????????????????????????????H????????? | | ?????????????????????????????????????????????????? | | ?????????????????????????????????????????????????? | | ?????????????????????????????????????????????????? | | ?????????????????????????????????????????????????? | | ?????????????????????????????????????????????????? | | ?????????????????????????????????????????????????? | | ?????????????????????????????????????????????????? | | ?????????????????????????????????????????????????? | | ?????????????????????????????????????????????????? | | ?????????????????????????????????????????????????? | +----------------------------------------------------+ Best States ------------- Heat Dissipation 52 Energy Generation 18 Energy Capacity 310 Matter Stores 300 Matter Capacity 300 Sight Range 23 Robot Scan Range 16 Terrain Scan Density 10 Armor Coverage 225 Propulsion Shielding 66 Evasion (%) 64 Offensive Hacking 21 Defensive Hacking 22 Item Schematics ----------------- None Robot Schematics ------------------ None Fabricated ------------ Nothing Repaired ---------- Nothing Studied --------- None Alien Tech Used ----------------- None Achievements -------------- None Challenges ------------ None Game ------ Seed SwordBehemothMeganuke Manual? 0 Play Time 00:27:58 Cumulative 740.5 hours Start 2025.12.04 @ 12:16:45 End 2025.12.04 @ 12:44:50 Sessions 1 Manual Loads 0 Difficulty Rogue Special Mode None Game No. 313 Rogue 313 Adventurer 0 Explorer 0 Win Type 0 Total 77 Types 39/5/13/6/6/1/1/3/0/3 Lore% 97 Gallery% 90 Achievement% 82 Wizard Run 0 Options --------- Layout 1 ASCII 0 Keyboard 0 Movement Numpad Keybinds 0 Fullscreen 1 Font 24/Smallcaps Map View 50x35 Zoom Use 0% Tactical HUD 1 Map Filters NONE Filters NONE Steam 1 RUN: 5e31b370-d54f-4938-8d2c-564629880d7f